bitfinex/quotes_SOLUSD_20250209
["timestamp","ask_amount","ask_price","bid_price","bid_amount"]
[1739129432519,3.5038,199.78,199.77,15.02686637]
[1739129433418,23.5038,199.78,199.77,15.02686637]
[1739129434328,36.91564853,199.78,199.76,15.02686637]
[1739129436427,36.91564853,199.78,199.77,15.02686637]
[1739129437316,23.5038,199.78,199.77,15.02686637]
[1739129438542,3.5038,199.78,199.77,15.02686637]
[1739129439122,23.5036,199.8,199.77,15.02686637]
[1739129439443,23.5036,199.8,199.79,15.02686637]
[1739129443347,3.5036,199.8,199.79,15.02686637]
[1739129443842,20.0,199.8,199.79,15.02686637]
[1739129444947,23.5035,199.8,199.79,15.02686637]
[1739129445458,3.5028,199.84,199.79,30.05373274]
[1739129445618,3.5028,199.84,199.83,15.02686637]
[1739129445824,23.5028,199.84,199.83,15.02686637]
[1739129446548,0.063,199.85,199.83,15.02686637]
[1739129446751,0.063,199.85,199.84,15.02686637]
[1739129448555,0.063,199.85,199.84,17.02686637]
[1739129448859,1.23491894,200.0,199.9,15.02686637]
[1739129448860,8.7512,199.98,199.9,15.02686637]
[1739129449049,20.0,199.94,199.91,15.02686637]
[1739129449426,23.5011,199.94,199.91,15.02686637]
[1739129450259,3.5011,199.94,199.91,15.02686637]
[1739129453447,20.0,199.94,199.91,15.02686637]
[1739129453634,13.41184853,199.93,199.91,15.02686637]
[1739129453823,20.0,199.91,199.9,15.02686637]
[1739129454346,12.2518,199.97,199.9,15.02686637]
[1739129454651,12.2518,199.97,199.91,15.02686637]
[1739129455048,3.5005,199.97,199.91,15.02686637]
[1739129455246,3.5005,199.97,199.96,15.02686637]
[1739129455434,13.41184853,200.0,199.96,15.02686637]
[1739129455755,13.41184853,200.0,199.99,15.02686637]
[1739129457255,16.91184853,200.0,199.99,15.02686637]
[1739129457959,16.91184853,200.0,199.98,15.02686637]
[1739129458150,25.66184853,200.0,199.98,15.02686637]
[1739129458458,33.41184853,199.97,199.95,15.02686637]
[1739129458752,20.0,199.93,199.92,15.02686637]
[1739129458949,20.0,199.93,199.9,15.02686637]
[1739129460270,3.5014,199.92,199.91,15.02686637]
[1739129460433,16.91324853,199.92,199.91,15.02686637]
[1739129460755,13.41184853,199.91,199.89,15.02686637]
[1739129461168,13.41184853,199.91,199.9,15.02686637]
[1739129461662,3.5014,199.92,199.9,15.02686637]
[1739129461965,3.5008,199.95,199.91,15.02686637]
[1739129462146,3.5008,199.95,199.94,15.02686637]
[1739129463258,23.5008,199.95,199.94,15.02686637]
[1739129463962,3.5008,199.95,199.94,15.02686637]
[1739129464561,20.0,199.96,199.94,15.02686637]
[1739129464759,20.0,199.96,199.95,15.02686637]
[1739129465060,3.5006,199.97,199.95,15.02686637]
[1739129465849,20.0,199.96,199.94,15.02686637]
[1739129466050,20.0,199.96,199.93,15.02686637]
[1739129466258,20.0,199.92,199.9,15.02686637]
[1739129466554,23.5015,199.91,199.89,15.02686637]
[1739129466759,23.5015,199.91,199.9,15.02686637]
[1739129467761,23.5015,199.91,199.89,15.02686637]
[1739129469272,20.0,199.89,199.87,15.02686637]
[1739129469572,20.0,199.89,199.86,15.02686637]
[1739129469876,20.0,199.88,199.87,15.02686637]
[1739129470172,20.0,199.88,199.86,15.02686637]
[1739129470545,20.0,199.89,199.86,15.02686637]
[1739129470747,3.5021,199.88,199.86,15.02686637]
[1739129472362,12.2573,199.88,199.83,15.02686637]
[1739129472542,13.41184853,199.87,199.83,15.02686637]
[1739129473966,20.0,199.85,199.84,15.02686637]
[1739129474547,3.5024,199.86,199.84,15.02686637]
[1739129474747,20.0,199.85,199.84,15.02686637]
[1739129475247,23.5026,199.85,199.84,15.02686637]
[1739129476563,20.0,199.84,199.81,0.063]
[1739129476772,20.0,199.82,199.81,15.08986637]
[1739129476964,33.41184853,199.82,199.81,0.063]
[1739129477567,34.1642258,199.82,199.81,0.063]
[1739129478348,13.41184853,199.81,199.79,0.063]
[1739129478666,4.25547727,199.82,199.79,0.063]
[1739129478667,20.0,199.8,199.79,0.063]
[1739129478846,33.41184853,199.8,199.79,0.063]
[1739129479870,36.91534853,199.8,199.79,0.063]
[1739129480164,37.6677258,199.8,199.79,0.0001]
[1739129480360,52.69459217,199.8,199.79,0.0001]
[1739129480665,20.0,199.72,199.66,15.02686637]
[1739129480861,33.41184853,199.71,199.67,15.02686637]
[1739129481166,33.41184853,199.71,199.68,15.02686637]
[1739129481671,33.41184853,199.71,199.67,15.02686637]
[1739129482075,3.5052,199.7,199.65,0.063]
[1739129482272,12.2642,199.77,199.69,15.08986637]
[1739129482479,13.41184853,199.76,199.73,15.02686637]
[1739129483070,33.41184853,199.73,199.72,15.02686637]
[1739129483448,36.91654853,199.73,199.72,15.02686637]
[1739129484248,3.5036,199.79,199.72,15.02686637]
[1739129484450,23.5036,199.79,199.78,15.02686637]
[1739129484878,3.5036,199.79,199.75,15.02686637]
[1739129485042,3.5036,199.79,199.72,15.02686637]
[1739129485043,20.0,199.75,199.72,15.02686637]
[1739129485249,13.41184853,199.74,199.73,15.02686637]
[1739129485470,3.5045,199.74,199.73,15.02686637]
[1739129486463,13.41184853,199.75,199.73,15.02686637]
[1739129487249,13.41184853,199.75,199.73,15.08986637]
[1739129487567,33.41184853,199.75,199.74,15.02686637]
[1739129487777,20.0,199.75,199.74,15.02686637]
[1739129488862,3.5038,199.78,199.74,15.02686637]
[1739129489061,3.5033,199.81,199.77,15.02686637]
[1739129489377,3.5033,199.81,199.8,15.02686637]
[1739129489565,13.41184853,199.81,199.8,15.02686637]
[1739129490352,13.41184853,199.82,199.8,15.02686637]
[1739129490560,13.41184853,199.82,199.81,15.02686637]
[1739129491176,0.03,199.85,199.81,15.02686637]
[1739129491480,13.44184853,199.85,199.83,15.02686637]
[1739129491683,16.94444853,199.85,199.84,15.02686637]
[1739129493079,16.94444853,199.85,199.83,15.02686637]
[1739129493281,20.0,199.83,199.82,15.02686637]
[1739129494273,3.5326,199.85,199.82,15.02686637]
[1739129494459,3.5326,199.85,199.84,15.02686637]
[1739129494969,20.03,199.85,199.84,15.02686637]
[1739129495484,0.03,199.85,199.84,15.02686637]
[1739129498783,22.3982,199.87,199.84,15.02686637]
[1739129499082,3.5015,199.91,199.86,15.02686637]
[1739129499283,3.5015,199.91,199.9,15.02686637]
[1739129500153,8.7521,199.95,199.9,15.02686637]
[1739129500375,3.501,199.94,199.9,15.02686637]
[1739129501261,23.501,199.94,199.9,15.02686637]
[1739129503113,3.501,199.94,199.93,15.02686637]
[1739129503293,3.5005,199.97,199.93,15.02686637]
[1739129503479,3.5005,199.97,199.96,15.02686637]
[1739129504199,23.5005,199.97,199.96,15.02686637]
[1739129504378,3.5005,199.97,199.96,15.02686637]
[1739129504809,0.03,199.99,199.96,15.02686637]
[1739129505002,33.44184853,199.99,199.98,15.02686637]
[1739129505436,20.03,199.99,199.98,15.02686637]
[1739129506209,33.44184853,199.99,199.98,15.02686637]
[1739129507006,33.44184853,199.99,199.9,150.02686637]
[1739129507299,20.0,199.95,199.9,15.02686637]
[1739129509105,12.2536,199.94,199.9,15.02686637]
[1739129509905,20.0,199.91,199.9,15.02686637]
[1739129510303,20.0,199.9,199.88,15.02686637]
[1739129510907,20.0,199.9,199.86,15.02686637]
[1739129511209,3.5019,199.89,199.86,15.02686637]
[1739129512421,3.5019,199.89,199.88,15.02686637]
[1739129515911,3.5012,199.93,199.88,15.02686637]
[1739129516097,20.0,199.92,199.91,15.02686637]
[1739129516414,20.0,199.92,199.9,15.02686637]
[1739129516719,33.41184853,199.92,199.82,81.9]
[1739129516895,20.0,199.87,199.84,15.02686637]
[1739129517595,20.0,199.87,199.83,15.02686637]
[1739129517826,3.5024,199.86,199.82,15.02686637]
[1739129517997,20.0,199.82,199.8,15.02686637]
[1739129519715,23.5031,199.82,199.81,15.02686637]
[1739129520306,36.91494853,199.82,199.8,15.02686637]
[1739129520528,23.5031,199.82,199.81,15.02686637]
[1739129520813,20.0,199.81,199.8,15.02686637]
[1739129521404,13.41184853,199.8,199.78,15.02686637]
[1739129521716,3.5036,199.79,199.78,15.02686637]
[1739129522222,13.41184853,199.78,199.77,0.063]
[1739129522923,13.41184853,199.78,199.73,0.063]
[1739129522924,13.41184853,199.74,199.73,15.08986637]
[1739129524019,3.5045,199.74,199.73,15.08986637]
[1739129524197,23.5043,199.76,199.73,15.08986637]
[1739129524407,23.5043,199.76,199.75,15.02686637]
[1739129524704,81.0,199.84,199.75,15.02686637]
[1739129524705,20.0,199.77,199.75,15.02686637]
[1739129524915,20.0,199.77,199.76,15.02686637]
[1739129525297,3.5029,199.83,199.76,15.02686637]
[1739129525511,3.5029,199.83,199.81,15.02686637]
[1739129525820,3.5029,199.83,199.82,24.0527367]
[1739129526323,3.5024,199.86,199.82,24.0527367]
[1739129526618,3.5024,199.86,199.85,24.0527367]
[1739129526819,16.91424853,199.86,199.85,24.0527367]
[1739129527715,13.41184853,199.85,199.83,24.0527367]
[1739129528201,33.41184853,199.83,199.81,24.0527367]
[1739129529425,33.41184853,199.83,199.76,81.9]
[1739129529426,13.41184853,199.82,199.79,24.0527367]
[1739129529724,0.75237727,199.85,199.77,24.0527367]
[1739129529725,3.5038,199.78,199.77,24.0527367]
[1739129531225,3.5038,199.78,199.76,24.0527367]
[1739129531429,3.5038,199.78,199.73,0.063]
[1739129531430,3.5038,199.78,199.74,24.0527367]
[1739129531608,3.5038,199.78,199.73,0.063]
[1739129531609,33.41184853,199.74,199.73,0.063]
[1739129531810,36.91634853,199.74,199.73,0.063]
[1739129534216,37.6687258,199.74,199.73,0.063]
[1739129535628,61.7214625,199.74,199.73,0.0001]
[1739129539015,62.7214625,199.74,199.73,0.0001]
[1739129539527,62.7214625,199.74,199.69,0.063]
[1739129539528,33.41184853,199.7,199.69,0.063]
[1739129539920,57.46458523,199.7,199.69,0.063]
[1739129540329,33.41184853,199.7,199.69,0.063]
[1739129541143,36.91704853,199.7,199.69,0.063]
[1739129541637,60.96978523,199.7,199.69,0.0001]
[1739129542030,60.96978523,199.7,199.67,0.0001]
[1739129542031,14.41184853,199.69,199.67,0.0001]
[1739129542219,38.2169625,199.68,199.67,0.0001]
[1739129542423,13.41184853,199.67,199.65,0.0001]
[1739129542721,14.1642258,199.66,199.65,0.0001]
[1739129543018,37.6701258,199.66,199.65,0.0001]
[1739129543216,41.7228625,199.66,199.65,0.0001]
[1739129545235,36.91774853,199.66,199.65,0.0001]
[1739129545457,16.91774853,199.66,199.65,24.0528367]
[1739129545628,3.5054,199.69,199.65,15.05403806]
[1739129545938,23.5054,199.69,199.68,15.05393806]
[1739129546143,36.91724853,199.69,199.68,15.05393806]
[1739129546913,13.41184853,199.68,199.65,0.0001]
[1739129547220,36.91774853,199.66,199.65,0.0001]
[1739129549552,61.76566823,199.66,199.65,0.0001]
[1739129552725,67.7601258,199.66,199.65,0.0001]
[1739129553230,92.85566823,199.66,199.65,0.0001]
[1739129553427,93.85566823,199.66,199.65,0.0001]
[1739129553921,100.10730233,199.66,199.65,0.0001]
[1739129554121,99.10730233,199.66,199.65,0.0001]
[1739129554337,67.7601258,199.66,199.65,0.0001]
[1739129554533,36.91774853,199.66,199.65,0.0001]
[1739129557026,92.85566823,199.66,199.65,0.0001]
[1739129557229,93.85566823,199.66,199.65,0.0001]
[1739129557427,100.10730233,199.66,199.65,0.0001]
[1739129557622,99.10730233,199.66,199.65,0.0001]
[1739129560473,1.0,199.64,199.6,0.063]
[1739129560633,20.0,199.61,199.6,0.063]
[1739129561634,23.5068,199.61,199.6,0.063]
[1739129562742,20.0,199.61,199.6,0.063]
[1739129563167,3.5066,199.62,199.6,24.15854243]
[1739129563746,13.41184853,199.61,199.6,24.15854243]
[1739129564450,16.91864853,199.61,199.6,24.15854243]
[1739129565043,16.91864853,199.61,199.6,0.063]
[1739129567255,16.91864853,199.61,199.6,24.15854243]
[1739129569671,3.5068,199.61,199.6,24.15854243]
[1739129569880,3.5066,199.62,199.6,24.15854243]
[1739129570177,8.7649,199.66,199.61,24.09554243]
[1739129570348,16.91794853,199.65,199.64,24.09554243]
[1739129570964,16.94794853,199.65,199.64,24.09554243]
[1739129572244,25.71324853,199.65,199.63,24.09554243]
[1739129572444,33.41184853,199.63,199.61,24.09554243]
[1739129573565,16.91844853,199.62,199.61,24.09554243]
[1739129573868,16.91844853,199.62,199.61,15.06274712]
[1739129577352,16.91844853,199.62,199.6,15.12574712]
[1739129577769,16.91844853,199.62,199.6,0.063]
[1739129578377,32.73357292,199.62,199.6,0.063]
[1739129578972,28.47459565,199.61,199.6,0.063]
[1739129579175,31.98139565,199.61,199.6,0.063]
[1739129579876,16.91864853,199.61,199.6,0.063]
[1739129588484,32.73377292,199.61,199.6,0.063]
[1739129589685,16.91864853,199.61,199.6,0.063]
[1739129590659,62.07139565,199.61,199.6,0.0001]
[1739129590980,13.41184853,199.6,199.59,0.0001]
[1739129591283,59.31697292,199.6,199.59,0.0001]
[1739129591494,60.31697292,199.6,199.59,0.0001]
[1739129591791,63.82397292,199.6,199.59,0.0001]
[1739129592281,33.41184853,199.57,199.53,0.063]
[1739129592489,34.1642258,199.57,199.53,0.063]
[1739129593487,13.41184853,199.55,199.53,0.063]
[1739129593883,16.91984853,199.54,199.53,0.063]
[1739129597289,3.508,199.54,199.53,15.12574712]
[1739129597504,3.5073,199.58,199.53,15.12574712]
[1739129597677,3.5073,199.58,199.56,15.06274712]
[1739129597871,33.41184853,199.57,199.55,15.06274712]
[1739129598385,16.91954853,199.56,199.55,15.06274712]
[1739129598995,3.5071,199.59,199.55,15.06274712]
[1739129599175,3.5071,199.59,199.58,15.06274712]
[1739129599381,16.91894853,199.59,199.58,15.06274712]
[1739129599883,33.41184853,199.57,199.56,15.06274712]
[1739129600067,13.41184853,199.56,199.55,15.06274712]
[1739129600273,20.0,199.54,199.53,15.12574712]
[1739129600497,23.508,199.54,199.53,15.12574712]
[1739129601786,36.91984853,199.54,199.53,15.12574712]
[1739129602109,36.91984853,199.54,199.53,0.063]
[1739129604381,37.6722258,199.54,199.53,0.063]
[1739129606512,36.91984853,199.54,199.53,0.063]
[1739129607014,3.508,199.54,199.53,15.12574712]
[1739129607808,23.5079,199.55,199.53,15.12574712]
[1739129608023,23.5079,199.55,199.54,15.06274712]
[1739129611202,3.5066,199.62,199.54,15.06274712]
[1739129611406,20.0,199.6,199.59,15.06274712]
[1739129611586,3.5066,199.62,199.59,15.06274712]
[1739129611790,16.91844853,199.62,199.61,15.06274712]
[1739129612910,16.91844853,199.62,199.6,15.06274712]
[1739129614708,8.7664,199.63,199.61,15.06274712]
[1739129614889,12.2728,199.63,199.61,15.06274712]
[1739129615093,13.41184853,199.62,199.61,15.06274712]
[1739129615904,3.5063,199.64,199.61,15.06274712]
[1739129616210,3.5063,199.64,199.63,15.06274712]
[1739129616413,23.5063,199.64,199.63,15.06274712]
[1739129617697,13.41184853,199.63,199.61,15.06274712]
[1739129618707,20.0,199.61,199.6,15.06274712]
[1739129619022,20.0,199.58,199.57,15.06274712]
[1739129619614,23.5073,199.58,199.57,15.06274712]
[1739129620011,20.0,199.61,199.57,15.06274712]
[1739129620313,20.0,199.61,199.54,0.063]
[1739129620314,20.0,199.6,199.59,15.06274712]
[1739129621220,33.41184853,199.6,199.55,15.06274712]
[1739129621412,20.0,199.56,199.55,15.06274712]
[1739129621601,23.5077,199.56,199.55,15.06274712]
[1739129621801,23.5077,199.56,199.54,0.063]
[1739129623621,20.0,199.55,199.54,0.063]
[1739129623814,33.41184853,199.55,199.54,0.063]
[1739129625512,33.41184853,199.55,199.54,15.12574712]
[1739129626133,36.91964853,199.55,199.54,15.12574712]
[1739129626520,23.5078,199.55,199.54,15.12574712]
[1739129629426,0.03,199.57,199.54,15.12574712]
[1739129629622,0.03,199.57,199.56,15.06274712]
[1739129630017,20.03,199.57,199.56,15.06274712]
[1739129630331,23.5375,199.57,199.56,15.06274712]
[1739129632020,0.03,199.57,199.56,15.06274712]
[1739129633206,3.5375,199.57,199.56,15.06274712]
[1739129634413,16.94934853,199.57,199.56,15.06274712]
[1739129635115,13.41184853,199.56,199.55,15.06274712]
[1739129635314,13.41184853,199.56,199.54,0.063]
[1739129636935,36.91964853,199.55,199.54,0.063]
[1739129637233,16.91964853,199.55,199.54,0.063]
[1739129639323,36.91964853,199.55,199.54,0.063]
[1739129639526,20.0,199.51,199.47,0.03]
[1739129639731,13.41184853,199.51,199.47,0.03]
[1739129639941,13.41184853,199.48,199.47,0.03]
[1739129640444,20.0,199.49,199.47,0.03]
[1739129640614,13.41184853,199.48,199.47,0.03]
[1739129641220,20.0,199.48,199.47,0.03]
[1739129641415,33.41184853,199.48,199.47,0.03]
[1739129642224,33.41184853,199.48,199.47,0.0001]
[1739129642225,78.56459565,199.48,199.47,0.0001]
[1739129642423,13.41184853,199.47,199.46,0.0001]
[1739129642627,14.1642258,199.47,199.46,0.0001]
[1739129643137,17.6734258,199.47,199.46,0.0001]
[1739129644348,20.0,199.41,199.4,15.09274712]
[1739129645141,33.41184853,199.41,199.4,15.09274712]
[1739129645339,36.92214853,199.41,199.4,15.09274712]
[1739129645552,36.92214853,199.41,199.4,0.03]
[1739129645839,13.41184853,199.36,199.34,15.12574712]
[1739129646628,33.41184853,199.35,199.34,0.063]
[1739129647446,36.92324853,199.35,199.34,0.063]
[1739129651846,33.41184853,199.35,199.34,15.12574712]
[1739129652048,3.5112,199.36,199.34,15.12574712]
[1739129652249,3.5112,199.36,199.35,15.06274712]
[1739129652449,36.92304853,199.36,199.35,15.06274712]
[1739129653231,36.92304853,199.36,199.34,15.12574712]
[1739129653924,36.92304853,199.36,199.35,15.06274712]
[1739129655045,20.0,199.36,199.35,15.06274712]
[1739129655251,3.5103,199.41,199.35,15.06274712]
[1739129655434,3.5103,199.41,199.4,15.06274712]
[1739129655641,36.92214853,199.41,199.4,15.06274712]
[1739129655942,3.5096,199.45,199.4,15.06274712]
[1739129656139,3.5096,199.45,199.42,15.06274712]
[1739129656336,13.41184853,199.44,199.42,15.06274712]
[1739129656541,13.41184853,199.44,199.43,15.06274712]
[1739129657051,13.41184853,199.45,199.43,15.06274712]
[1739129657248,81.0,199.47,199.44,15.06274712]
[1739129657451,3.5094,199.47,199.46,15.06274712]
[1739129657637,16.92124853,199.47,199.46,15.06274712]
[1739129657832,0.03,199.49,199.46,15.06274712]
[1739129658057,3.5391,199.49,199.48,15.06274712]
[1739129658260,16.95094853,199.49,199.48,15.06274712]
[1739129658935,16.95094853,199.49,199.46,15.06274712]
[1739129658936,13.41184853,199.48,199.46,15.06274712]
[1739129659134,13.41184853,199.48,199.45,15.06274712]
[1739129659331,33.41184853,199.46,199.45,15.06274712]
[1739129660142,0.03,199.49,199.45,15.06274712]
[1739129660346,3.5391,199.49,199.48,15.06274712]
[1739129660550,16.95094853,199.49,199.48,15.06274712]
[1739129662658,0.03,199.49,199.48,15.06274712]
[1739129663150,20.03,199.49,199.48,15.06274712]
[1739129664352,0.03,199.49,199.48,15.06274712]
[1739129664678,36.95074853,199.49,199.48,15.06274712]
[1739129664978,36.95074853,199.49,199.47,15.06274712]
[1739129665147,36.95074853,199.49,199.48,15.06274712]
[1739129665653,0.03,199.49,199.48,15.06274712]
[1739129666266,20.03,199.49,199.48,15.06274712]
[1739129668856,0.03,199.49,199.48,15.06274712]
[1739129669345,3.5389,199.49,199.48,15.06274712]
[1739129670256,20.03,199.49,199.48,15.06274712]
[1739129670463,33.44184853,199.49,199.48,15.06274712]
[1739129670656,13.41184853,199.48,199.47,15.06274712]
[1739129671554,13.41184853,199.48,199.46,15.06274712]
[1739129672366,20.0,199.46,199.45,15.06274712]
[1739129672559,33.41184853,199.46,199.45,15.06274712]
[1739129674056,3.5091,199.48,199.45,15.06274712]
[1739129674377,0.03,199.49,199.47,15.06274712]
[1739129674540,0.03,199.49,199.48,15.06274712]
[1739129675951,33.44184853,199.49,199.46,15.06274712]
[1739129676250,13.41184853,199.48,199.46,15.06274712]
[1739129676748,3.5092,199.47,199.46,15.06274712]
[1739129677152,16.92104853,199.47,199.45,15.06274712]
[1739129677562,16.92104853,199.47,199.44,15.06274712]
[1739129677870,33.41184853,199.43,199.42,15.06274712]
[1739129678251,33.41184853,199.43,199.39,0.063]
[1739129678252,33.41184853,199.43,199.41,15.06274712]
[1739129678771,36.92184853,199.43,199.42,15.06274712]
[1739129679950,20.0,199.4,199.39,0.063]
[1739129680348,20.0,199.4,199.39,15.12574712]
[1739129681362,23.5105,199.4,199.39,15.12574712]
[1739129682378,20.0,199.44,199.39,15.12574712]
[1739129682577,13.41184853,199.43,199.41,15.06274712]
[1739129683659,23.5099,199.44,199.42,15.06274712]
[1739129683858,3.5099,199.44,199.43,15.06274712]
[1739129684273,81.03,199.49,199.43,15.06274712]
[1739129684476,3.5091,199.48,199.4,15.06274712]
[1739129684776,36.92094853,199.48,199.47,15.06274712]
[1739129686982,23.5091,199.48,199.47,15.06274712]
[1739129687356,3.539,199.49,199.47,15.06274712]
[1739129687556,3.539,199.49,199.48,15.06274712]
[1739129696075,0.03,199.49,199.48,15.06274712]
[1739129697482,3.0384,199.52,199.48,15.06274712]
[1739129697675,3.0384,199.52,199.51,15.06274712]
[1739129697676,16.45024853,199.52,199.51,15.06274712]
[1739129698992,3.0384,199.52,199.51,15.06274712]
[1739129700685,16.45024853,199.52,199.51,15.06274712]
[1739129700885,13.41184853,199.51,199.5,15.06274712]
[1739129701974,20.0,199.51,199.5,15.06274712]
[1739129702676,23.5085,199.51,199.5,15.06274712]
[1739129702879,23.5085,199.51,199.5,30.12549424]
[1739129703087,3.508,199.54,199.5,30.12549424]
[1739129703280,3.508,199.54,199.53,15.06274712]
[1739129703687,23.508,199.54,199.53,15.06274712]
[1739129704285,3.508,199.54,199.53,15.06274712]
[1739129704682,23.508,199.54,199.53,15.06274712]
[1739129704877,3.5077,199.56,199.53,15.06274712]
[1739129705199,0.03,199.57,199.55,15.06274712]
[1739129705403,0.03,199.57,199.56,15.06274712]
[1739129705616,3.5375,199.57,199.56,15.06274712]
[1739129706609,16.94934853,199.57,199.56,15.06274712]
[1739129706813,20.0,199.54,199.53,15.06274712]
[1739129706988,23.508,199.54,199.53,15.06274712]
[1739129708173,13.41184853,199.53,199.51,15.06274712]
[1739129708882,3.5084,199.52,199.51,15.06274712]
[1739129710187,23.5084,199.52,199.51,15.12574712]
[1739129711096,0.03,199.53,199.51,15.12574712]
[1739129711296,0.03,199.53,199.52,15.06274712]
[1739129711612,3.5376,199.57,199.52,15.06274712]
[1739129711782,3.5376,199.57,199.56,15.06274712]
[1739129712402,23.5376,199.57,199.56,15.06274712]
[1739129713207,0.03,199.57,199.56,15.06274712]
[1739129714722,20.03,199.57,199.56,15.06274712]
[1739129715928,36.94934853,199.57,199.51,0.063]
[1739129716117,13.41184853,199.56,199.55,15.06274712]
[1739129717813,0.03,199.57,199.55,15.06274712]
[1739129718117,0.03,199.57,199.56,15.06274712]
[1739129719299,3.5375,199.57,199.56,15.06274712]
[1739129719510,0.03,199.57,199.56,15.06274712]
[1739129719711,33.44184853,199.57,199.56,15.06274712]
[1739129721499,36.94934853,199.57,199.55,15.06274712]
[1739129721705,20.0,199.53,199.51,15.12574712]
[1739129721899,13.41184853,199.52,199.51,15.12574712]
[1739129722104,13.41184853,199.52,199.51,0.063]
[1739129722625,33.41184853,199.52,199.51,0.063]
[1739129723620,36.92024853,199.52,199.51,0.063]
[1739129728402,3.5084,199.52,199.51,15.12574712]
[1739129728826,23.5084,199.52,199.51,15.12574712]
[1739129733231,3.5084,199.52,199.51,15.12574712]
[1739129733404,3.5077,199.56,199.51,15.12574712]
[1739129733727,3.5077,199.56,199.55,15.06274712]
[1739129735915,0.03,199.57,199.55,15.06274712]
[1739129736111,3.5375,199.57,199.56,15.06274712]
[1739129740833,16.94934853,199.57,199.56,15.06274712]
[1739129741023,20.0,199.55,199.54,15.06274712]
[1739129741625,0.03,199.57,199.54,15.06274712]
[1739129741826,0.03,199.57,199.56,15.06274712]
[1739129759351,3.5375,199.57,199.56,15.06274712]
[1739129759533,33.41184853,199.55,199.54,15.06274712]
[1739129759730,13.41184853,199.54,199.51,0.063]
[1739129760043,20.0,199.52,199.47,15.06274712]
[1739129760234,20.0,199.48,199.41,81.9]
[1739129760433,20.0,199.48,199.47,15.06274712]
[1739129760654,81.0,199.54,199.47,15.06274712]
[1739129760834,13.41184853,199.56,199.52,15.06274712]
[1739129761035,20.0,199.53,199.51,15.06274712]
[1739129761351,3.5084,199.52,199.51,15.06274712]
[1739129761735,20.0,199.5,199.49,15.06274712]
[1739129763347,23.5087,199.5,199.49,15.06274712]
[1739129764348,3.5077,199.56,199.49,15.06274712]
[1739129764549,3.5077,199.56,199.53,15.06274712]
[1739129764931,3.5077,199.56,199.54,15.06274712]
[1739129765448,16.91954853,199.56,199.54,15.06274712]
[1739129765836,16.91954853,199.56,199.53,15.06274712]
[1739129766045,23.508,199.54,199.51,15.06274712]
[1739129767242,23.508,199.54,199.52,15.06274712]
[1739129767431,23.508,199.54,199.53,15.06274712]
[1739129767828,23.508,199.54,199.52,15.06274712]
[1739129767829,36.91984853,199.54,199.52,15.06274712]
[1739129768133,45.68994853,199.54,199.47,0.063]
[1739129768452,13.41184853,199.53,199.5,15.06274712]
[1739129768649,13.41184853,199.53,199.47,0.063]
[1739129768650,13.41184853,199.53,199.48,15.06274712]
[1739129769156,13.41184853,199.53,199.5,15.06274712]
[1739129769333,13.41184853,199.53,199.49,15.06274712]
[1739129769535,20.0,199.51,199.5,15.06274712]
[1739129770159,3.5084,199.52,199.48,15.06274712]
[1739129770332,20.0,199.49,199.48,15.06274712]
[1739129771762,23.5089,199.49,199.48,15.06274712]
[1739129780568,23.5089,199.49,199.47,0.063]
[1739129780767,33.41184853,199.48,199.47,0.063]
[1739129781068,20.0,199.44,199.41,15.06274712]
[1739129781271,20.0,199.41,199.4,15.06274712]
[1739129781447,20.0,199.4,199.39,15.12574712]
[1739129781859,20.0,199.4,199.39,0.063]
[1739129782370,23.5105,199.4,199.39,0.063]
[1739129783453,20.0,199.4,199.39,15.12574712]
[1739129784164,23.5105,199.4,199.39,15.12574712]
[1739129785443,1.23319246,199.45,199.39,15.12574712]
[1739129785677,20.0,199.43,199.42,15.06274712]
[1739129786362,3.5092,199.47,199.42,15.06274712]
[1739129786567,3.5092,199.47,199.46,15.06274712]
[1739129786944,3.5087,199.5,199.46,15.06274712]
[1739129787139,3.5087,199.5,199.49,15.06274712]
[1739129788473,20.0,199.5,199.49,15.06274712]
[1739129788774,0.03,199.51,199.49,15.06274712]
[1739129788956,0.03,199.51,199.5,15.06274712]
[1739129789878,20.0,199.46,199.43,15.06274712]